bitfinex/quotes_SOLUSD_20240729
["timestamp","ask_amount","ask_price","bid_price","bid_amount"]
[1722291919359,32.6,185.1,185.05,18.913]
[1722291919559,32.6,185.1,185.03,12.6]
[1722291919560,13.6854534,185.09,185.03,5.4042]
[1722291919863,32.6,185.08,185.03,5.4042]
[1722291920374,20.0,185.08,185.03,5.4042]
[1722291920689,25.4031,185.08,185.03,5.4042]
[1722291920850,20.0,185.08,185.03,5.4042]
[1722291921056,20.0,185.08,185.04,5.4041]
[1722291922290,20.17,185.09,185.05,13.5098]
[1722291923085,20.17,185.09,185.05,18.9137]
[1722291924490,20.0,185.09,185.06,5.4035]
[1722291924695,12.6,185.11,185.06,5.4035]
[1722291924877,20.0,185.1,185.06,5.4035]
[1722291925075,0.94080011,185.12,185.09,5.4027]
[1722291925386,0.94080011,185.12,185.06,28.83905449]
[1722291925387,12.6,185.15,185.08,6.1622]
[1722291925588,12.6,185.14,185.08,6.1622]
[1722291925992,12.6,185.14,185.1,5.4024]
[1722291926370,0.94057541,185.17,185.11,13.5047]
[1722291926577,12.6,185.15,185.11,13.5047]
[1722291926777,20.0,185.14,185.11,13.5047]
[1722291926992,2.10702614,185.22,185.11,26.1047]
[1722291927198,12.6,185.18,185.11,26.1047]
[1722291927372,12.6,185.12,185.09,5.4026]
[1722291927570,12.6,185.12,185.08,5.4027]
[1722291927990,12.6,185.12,185.09,5.4027]
[1722291928194,20.1574,185.17,185.1,5.4024]
[1722291928399,12.6,185.14,185.07,26.1078]
[1722291928771,12.6,185.14,185.1,5.4024]
[1722291928977,19.2570534,185.13,185.08,5.4028]
[1722291929176,12.6,185.12,185.07,18.9111]
[1722291929602,13.6854534,185.11,185.07,18.9111]
[1722291932373,0.17,185.1,185.07,13.5078]
[1722291932579,13.8554534,185.1,185.04,6.403]
[1722291932770,32.6,185.09,185.04,11.8069]
[1722291932974,20.0,185.09,185.04,6.403]
[1722291933170,20.0,185.09,185.05,26.1092]
[1722291933494,12.6,185.12,185.08,5.403]
[1722291933699,20.17,185.11,185.09,5.4027]
[1722291933888,20.17,185.11,185.07,5.403]
[1722291934196,0.17,185.11,185.07,4.903]
[1722291935803,18.1722,185.11,185.06,5.4036]
[1722291936100,12.77,185.11,185.06,5.4036]
[1722291936674,12.77,185.11,185.07,5.4033]
[1722291937490,12.77,185.11,185.06,5.4036]
[1722291937688,18.1721,185.11,185.06,5.4036]
[1722291939699,0.17,185.11,185.07,5.4032]
[1722291939903,20.0,185.12,185.08,5.4029]
[1722291940499,20.0,185.12,185.07,5.4033]
[1722291940684,38.0019,185.12,185.07,5.4033]
[1722291942006,18.0019,185.12,185.07,5.4033]
[1722291942207,5.4024,185.11,185.06,1.08055798]
[1722291942501,12.6,185.12,185.08,5.403]
[1722291942707,12.77,185.13,185.09,5.4027]
[1722291944021,12.6,185.15,185.1,13.5061]
[1722291944304,5.4007,185.16,185.1,18.9085]
[1722291944305,18.0007,185.16,185.1,18.9085]
[1722291944492,20.0,185.15,185.1,18.9085]
[1722291944677,18.0007,185.16,185.1,13.5061]
[1722291944882,12.6,185.15,185.11,5.402]
[1722291945987,18.001,185.15,185.1,13.5061]
[1722291946380,12.77,185.14,185.06,26.1085]
[1722291946585,18.0018,185.13,185.08,5.4029]
[1722291946802,18.0019,185.12,185.07,5.4032]
[1722291947011,5.4024,185.11,185.06,13.5085]
[1722291947213,0.17,185.1,185.06,13.5085]
[1722291948016,12.6,185.14,185.09,13.5069]
[1722291948599,0.17,185.16,185.11,5.4021]
[1722291948803,12.6,185.15,185.11,5.4021]
[1722291949714,12.6,185.14,185.05,13.5092]
[1722291949902,12.6,185.14,185.09,5.4027]
[1722291950102,12.6,185.14,185.07,12.6]
[1722291950309,12.6,185.14,185.1,5.4024]
[1722291950488,18.0015,185.14,185.08,13.5075]
[1722291950803,12.77,185.13,185.08,13.5075]
[1722291951600,12.6,185.15,185.08,26.1075]
[1722291951789,2.12480484,185.17,185.11,13.5053]
[1722291951988,12.6,185.16,185.13,5.4015]
[1722291952303,12.6,185.14,185.11,13.5053]
[1722291952688,12.6,185.14,185.09,5.4024]
[1722291953304,19.0867534,185.14,185.09,5.4024]
[1722291953520,32.77,185.13,185.08,18.9105]
[1722291953693,32.77,185.13,185.09,5.4025]
[1722291953900,20.17,185.13,185.09,5.4025]
[1722291954098,12.6,185.15,185.08,27.18798678]
[1722291954422,5.4006,185.17,185.12,5.4018]
[1722291954423,12.77,185.16,185.12,5.4018]
[1722291954792,12.6,185.15,185.12,5.4018]
[1722291956010,12.6,185.15,185.11,5.4021]
[1722291957794,12.6,185.15,185.1,13.5055]
[1722291957795,12.6,185.15,185.12,5.4018]
[1722291958515,12.6,185.15,185.11,5.4021]
[1722291960321,12.6,185.14,185.13,13.504]
[1722291960499,12.6,185.15,185.13,13.504]
[1722291960705,0.17,185.16,185.13,13.504]
[1722291960919,12.6,185.16,185.14,5.4012]
[1722291961309,12.6,185.17,185.14,5.4012]
[1722291961802,12.77,185.18,185.14,5.4012]
[1722291962010,20.0,185.17,185.14,5.4012]
[1722291962505,20.0,185.17,185.15,5.401]
[1722291962719,14.73817708,185.21,185.17,5.4001]
[1722291962921,12.6,185.2,185.17,5.4001]
[1722291963528,12.6,185.2,185.16,5.4006]
[1722291964111,12.6,185.22,185.17,1.08007297]
[1722291964618,12.6,185.22,185.16,12.6]
[1722291964619,12.6,185.22,185.18,5.3999]
[1722291964804,17.9998,185.19,185.15,13.5019]
[1722291965005,12.6,185.18,185.15,13.5019]
[1722291965394,19.0855534,185.18,185.13,5.4013]
[1722291965596,12.6,185.16,185.11,28.9402]
[1722291966698,12.6,185.18,185.14,13.5031]
[1722291966921,12.6,185.19,185.14,13.5031]
[1722291967312,20.0,185.18,185.14,18.9043]
[1722291967707,32.6,185.18,185.14,18.9043]
[1722291968129,32.6,185.18,185.15,5.4009]
[1722291968305,12.77,185.2,185.14,13.5031]
[1722291968504,20.0,185.19,185.14,13.5031]
[1722291968701,23.23773693,185.26,185.19,5.3996]
[1722291968921,12.6,185.22,185.18,5.4001]
[1722291969104,12.6,185.21,185.18,5.4001]
[1722291969927,12.6,185.21,185.17,18.9013]
[1722291970710,12.6,185.2,185.17,18.9013]
[1722291970912,12.6,185.2,185.13,13.5037]
[1722291970913,17.9996,185.2,185.13,13.5037]
[1722291971109,13.8554534,185.19,185.13,13.5037]
[1722291971328,13.8554534,185.19,185.14,5.4013]
[1722291971512,12.77,185.19,185.15,5.4008]
[1722291971710,0.17,185.19,185.15,5.4008]
[1722291972225,0.17,185.19,185.16,5.4006]
[1722291972414,20.17,185.2,185.16,5.4006]
[1722291974313,20.17,185.2,185.17,5.4003]
[1722291974632,1.0854534,185.19,185.16,13.5016]
[1722291974830,13.6854534,185.19,185.15,5.4009]
[1722291975013,13.6854534,185.19,185.14,5.4013]
[1722291975212,0.17,185.18,185.14,5.4013]
[1722291975724,0.17,185.18,185.15,5.4008]
[1722291976805,1.0854534,185.24,185.15,5.4008]
[1722291976806,12.6,185.22,185.16,13.5016]
[1722291977107,20.17,185.21,185.16,13.5016]
[1722291977313,20.17,185.21,185.18,5.3999]
[1722291977720,17.9999,185.19,185.13,5.4014]
[1722291977899,0.17,185.18,185.12,26.1045]
[1722291978102,1.2554534,185.18,185.12,26.1045]
[1722291978305,19.2556534,185.18,185.12,18.9061]
[1722291978599,0.17,185.18,185.14,5.4013]
[1722291978803,12.77,185.18,185.14,5.4013]
[1722291979004,1.0854534,185.17,185.14,5.4012]
[1722291979438,12.77,185.18,185.12,18.9061]
[1722291979618,12.77,185.18,185.13,5.4014]
[1722291979819,12.77,185.18,185.14,5.4012]
[1722291980016,0.17,185.18,185.14,13.5025]
[1722291980420,0.17,185.19,185.14,13.5025]
[1722291980626,58.8554534,185.19,185.14,13.5025]
[1722291980819,57.77,185.19,185.14,13.5025]
[1722291981828,57.77,185.19,185.15,5.4009]
[1722291982029,57.77,185.19,185.14,18.9037]
[1722291982609,63.1698,185.19,185.14,18.9037]
[1722291982830,57.77,185.19,185.14,18.9037]
[1722291983333,57.77,185.19,185.15,5.401]
[1722291984414,45.0,185.19,185.15,5.401]
[1722291984607,45.94053746,185.19,185.15,5.401]
[1722291985318,58.54053746,185.19,185.14,18.9036]
[1722291985715,58.54053746,185.19,185.15,5.4009]
[1722291986015,45.94053746,185.19,185.16,5.4006]
[1722291988736,12.6,185.23,185.2,5.3995]
[1722291988916,20.0,185.22,185.2,5.3995]
[1722291989116,21.0854534,185.22,185.2,5.3995]
[1722291989337,21.0854534,185.22,185.19,5.3998]
[1722291989536,21.0854534,185.22,185.2,5.3994]
[1722291989845,20.0,185.22,185.19,5.3998]
[1722291991324,20.0,185.22,185.18,5.4001]
[1722291991523,1.0854534,185.21,185.18,5.4001]
[1722291991733,20.0,185.22,185.18,5.4001]
[1722291992725,20.0,185.22,185.19,5.3997]
[1722291992936,20.94045166,185.23,185.19,5.3997]
[1722291993825,33.54045166,185.23,185.19,5.3997]
[1722291995142,33.54045166,185.23,185.18,5.4]
[1722291995327,40.02470506,185.23,185.18,5.4]
[1722291995523,17.9991,185.22,185.17,18.9013]
[1722291995723,32.6,185.21,185.17,13.501]
[1722291997142,1.0854534,185.2,185.17,18.9013]
[1722291997333,32.6,185.21,185.17,18.9013]
[1722291997746,12.6,185.21,185.17,18.9013]
[1722291997931,13.71045166,185.23,185.17,13.501]
[1722291998132,20.0,185.22,185.19,5.3997]
[1722291999654,20.0,185.22,185.18,5.4001]
[1722291999655,1.0854534,185.21,185.18,5.4001]
[1722292000047,1.0854534,185.21,185.17,18.9013]
[1722292000357,20.0,185.22,185.17,18.9013]
[1722292000654,32.6,185.22,185.17,18.9013]
[1722292001231,12.6,185.21,185.17,18.9013]
[1722292001961,25.399,185.22,185.17,18.9013]
[1722292001962,37.999,185.22,185.17,18.9013]
[1722292002658,12.6,185.22,185.17,13.501]
[1722292002830,13.71045166,185.23,185.2,5.3995]
[1722292003036,45.0,185.22,185.2,5.3995]
[1722292003857,46.11045166,185.23,185.2,5.3995]
[1722292004032,45.94045166,185.23,185.2,5.3995]
[1722292004240,45.94045166,185.23,185.19,5.3998]
[1722292004434,63.93915166,185.23,185.18,5.4]
[1722292004755,12.6,185.21,185.17,18.9014]
[1722292006154,0.94045166,185.23,185.21,5.3992]
[1722292007855,0.94045166,185.23,185.2,13.4986]
[1722292008156,20.94045166,185.23,185.2,13.4986]
[1722292008661,13.6854534,185.22,185.17,13.501]
[1722292009530,12.6,185.21,185.16,6.5392]
[1722292009755,13.6854534,185.2,185.15,5.4008]
[1722292009960,13.6854534,185.2,185.16,5.4005]
[1722292010135,12.6,185.2,185.17,5.4003]
[1722292010431,13.54036776,185.21,185.17,5.4003]
[1722292012046,13.54036776,185.21,185.18,5.4]
[1722292013744,1.0854534,185.2,185.18,5.4]
[1722292014661,1.0854534,185.2,185.17,5.4003]
[1722292014863,1.0854534,185.2,185.18,5.3999]
[1722292016061,1.0854534,185.2,185.17,5.4004]
[1722292016364,46.0854534,185.2,185.17,5.4004]
[1722292017561,46.0854534,185.2,185.18,5.3999]
[1722292017749,45.0,185.2,185.18,5.3999]
[1722292017954,20.0,185.23,185.19,13.4994]
[1722292018275,20.0,185.23,185.22,5.3989]
[1722292018775,20.0,185.23,185.19,13.4994]
[1722292019062,34.70352902,185.24,185.21,5.3992]
[1722292019266,32.6,185.24,185.21,5.3992]
[1722292019563,32.6,185.24,185.19,18.8989]
[1722292019861,32.6,185.24,185.17,5.4004]
[1722292019862,12.6,185.22,185.17,5.4004]
[1722292020064,77.6,185.21,185.17,5.4004]
[1722292020243,32.6,185.21,185.17,5.4004]
[1722292020859,57.6,185.2,185.15,18.9025]
[1722292021060,20.0,185.19,185.15,18.9025]
[1722292021639,12.6,185.18,185.15,13.5018]
[1722292021861,1.0854534,185.17,185.12,20.0439]
[1722292022169,21.0854534,185.17,185.12,20.0439]
[1722292022464,32.6,185.17,185.12,13.5047]
[1722292022762,32.6,185.17,185.11,15.4353]
[1722292022763,50.4007,185.16,185.11,5.402]
[1722292023669,63.0007,185.16,185.11,5.402]
[1722292023872,20.0,185.15,185.11,5.402]
[1722292024245,20.0,185.15,185.1,18.0024]
[1722292024872,20.0,185.15,185.13,5.4015]
[1722292025068,3.3241,185.26,185.13,12.6]
[1722292025263,12.6,185.19,185.15,5.401]
[1722292025742,12.6,185.19,185.14,13.503]
[1722292025937,12.6,185.19,185.14,18.9041]
[1722292026466,12.6,185.19,185.15,5.4009]
[1722292026872,17.9996,185.2,185.14,13.503]
[1722292027846,32.6,185.19,185.14,13.503]
[1722292028153,37.9999,185.19,185.14,13.503]
[1722292028865,17.9999,185.19,185.14,18.9041]
[1722292029967,5.4001,185.18,185.14,13.503]
[1722292030167,18.0001,185.18,185.14,13.503]
[1722292031157,12.6,185.18,185.14,13.503]
[1722292032368,1.0854534,185.17,185.12,11.5361]
[1722292032867,50.4,185.22,185.11,15.3155]
[1722292033053,50.4,185.22,185.13,5.4015]
[1722292033054,12.6,185.17,185.13,5.4015]
[1722292033251,12.6,185.18,185.14,5.4013]
[1722292033452,20.0,185.17,185.14,5.4013]
[1722292033871,20.0,185.17,185.13,18.9052]
[1722292034764,17.9995,185.2,185.13,26.1038]
[1722292034969,20.0,185.19,185.13,26.1038]
[1722292035369,20.0,185.19,185.14,5.4012]
[1722292035862,18.0001,185.18,185.13,13.5038]
[1722292036177,20.0,185.17,185.13,13.5038]
[1722292036775,12.6,185.16,185.11,15.3155]
[1722292036968,20.0,185.15,185.11,15.3155]
[1722292037170,20.0,185.15,185.12,5.4018]
[1722292037750,20.0,185.16,185.12,5.4018]
[1722292038056,20.0,185.16,185.11,34.223]
[1722292038258,25.4007,185.16,185.11,34.223]
[1722292038459,5.4013,185.14,185.11,15.3155]
[1722292039175,20.0,185.16,185.11,28.8209]
[1722292039360,0.94069896,185.18,185.12,6.48207462]
[1722292039361,18.94109896,185.18,185.12,6.48207462]
[1722292039561,20.0,185.17,185.14,26.1032]
[1722292039865,5.3998,185.19,185.14,31.5044]
[1722292040254,20.0,185.18,185.14,31.5044]
[1722292040658,20.0,185.18,185.14,26.1032]
[1722292041264,5.4006,185.17,185.13,12.6]
[1722292041462,20.0,185.16,185.11,33.3174]
[1722292041678,20.0,185.16,185.11,15.3155]
[1722292042067,12.6,185.15,185.11,15.3155]
[1722292042459,5.4013,185.14,185.11,15.3155]
[1722292042881,5.4016,185.13,185.08,24.088]
[1722292043979,5.4013,185.14,185.08,24.088]
[1722292044860,18.0013,185.14,185.08,11.488]
[1722292045556,18.0013,185.14,185.09,5.4027]
[1722292045971,5.4013,185.14,185.09,5.4027]
[1722292046279,20.0,185.16,185.11,12.6]
[1722292046496,5.4007,185.16,185.11,5.402]
[1722292046682,20.0,185.15,185.11,5.402]
[1722292047480,25.4008,185.16,185.1,12.6]
[1722292047686,38.0008,185.16,185.09,26.1067]
[1722292048766,38.0008,185.16,185.1,5.4024]
[1722292052890,5.401,185.15,185.09,31.5094]
[1722292053394,18.001,185.15,185.09,18.9094]
[1722292054868,18.0013,185.14,185.09,13.5067]
[1722292055073,12.6,185.13,185.08,11.488]
[1722292055287,18.0019,185.12,185.08,6.085]
[1722292055979,18.0022,185.11,185.05,18.9129]
[1722292056384,12.6,185.11,185.06,5.4035]
[1722292056578,12.6,185.12,185.07,5.4033]
[1722292056773,18.0016,185.13,185.07,5.4033]
[1722292056974,20.0,185.12,185.07,5.4033]
[1722292057395,38.0019,185.12,185.07,5.4033]
[1722292057574,38.0019,185.12,185.06,5.4036]
[1722292057894,12.6,185.11,185.06,5.4036]
[1722292065373,12.6,185.09,185.04,6.4954]
[1722292066372,18.003,185.09,185.04,6.4954]
[1722292066787,12.6,185.09,185.04,6.4954]
[1722292067690,12.6,185.09,185.05,5.4039]
[1722292071796,12.6,185.09,185.04,11.8995]
[1722292072978,18.0028,185.09,185.04,11.8995]
[1722292074302,12.6,185.09,185.04,11.8995]
[1722292074798,18.0028,185.09,185.04,11.8995]
[1722292076788,12.6,185.09,185.04,11.8995]
[1722292078405,12.6,185.09,185.05,5.4039]
[1722292078781,18.0028,185.09,185.04,6.4954]
[1722292079888,12.6,185.08,185.04,6.4954]
[1722292081908,12.6,185.08,185.04,11.8996]
[1722292082298,12.6,185.09,185.05,5.4038]
[1722292083492,12.6,185.07,185.02,13.512]
[1722292083696,12.6,185.07,185.01,5.4049]
[1722292083697,12.6,185.06,185.01,5.4049]
[1722292084025,32.6,185.06,185.01,5.4049]
[1722292084214,1.0854534,185.1,184.98,48.8586]
[1722292084215,12.6,185.02,184.98,21.8287]
[1722292084389,12.6,185.0,184.97,5.406]
[1722292084713,12.6,184.99,184.95,18.9233]
[1722292084894,32.6,184.99,184.95,18.9233]
[1722292085291,32.6,184.99,184.95,13.5165]
[1722292085791,12.6,184.98,184.95,13.5165]
[1722292086400,12.6,184.96,184.91,13.5199]
[1722292086700,12.6,184.97,184.92,5.4074]
[1722292086886,13.5114,185.03,184.94,5.4071]
[1722292086887,5.4054,185.0,184.94,5.4071]
[1722292087087,12.6,184.98,184.94,5.4071]
[1722292087287,12.6,184.98,184.95,5.4068]
[1722292088113,12.6,184.99,184.96,1.07727458]
[1722292088314,12.6,185.0,184.96,5.4064]
[1722292088616,20.0,184.99,184.96,5.4064]
[1722292088812,20.0,184.99,184.95,5.4068]
[1722292090004,20.0,184.99,184.96,1.08119253]
[1722292090531,12.6,185.01,184.97,5.4061]
[1722292090823,12.6,185.02,184.97,5.4061]
[1722292090990,20.0,185.01,184.97,5.4061]
[1722292091387,20.0,185.01,184.95,24.6199]
[1722292091919,20.0,185.01,184.96,5.4065]
[1722292092616,18.0054,185.0,184.95,6.6134]
[1722292093401,18.0054,185.0,184.95,12.0201]
[1722292094220,12.6,184.99,184.95,12.0201]
[1722292094398,5.4058,184.99,184.94,13.5178]
[1722292094722,18.006,184.98,184.94,1.0812892]
[1722292094905,12.6,184.97,184.94,1.0812892]
[1722292095719,12.6,184.96,184.93,6.48871851]
[1722292096796,12.6,184.96,184.93,5.4074]
[1722292097119,12.6,184.96,184.93,6.48871743]
[1722292097813,12.6,184.96,184.93,5.4074]
[1722292098195,20.0,185.01,184.96,5.4065]
[1722292098520,25.4051,185.01,184.96,5.4065]
[1722292098820,12.6,184.99,184.96,5.4065]
[1722292099720,12.6,184.99,184.95,18.9232]
[1722292102925,12.6,184.98,184.95,18.9232]
[1722292104626,12.6,184.99,184.95,18.9232]
[1722292105725,12.6,184.99,184.96,5.4065]
[1722292106632,12.6,185.0,184.96,5.4065]
[1722292107126,12.6,185.0,184.95,18.9232]
[1722292107431,12.6,184.99,184.95,18.9232]
[1722292110211,12.6,184.99,184.96,5.4065]
[1722292110414,12.6,185.0,184.96,5.4065]
[1722292111827,12.6,184.99,184.95,18.9232]
[1722292116422,12.6,184.99,184.95,13.5164]
[1722292116622,12.6,184.98,184.95,13.5164]
[1722292118625,12.6,184.98,184.95,18.9231]
[1722292119833,12.6,184.97,184.95,13.5164]
[1722292120539,12.6,184.97,184.95,18.9232]
[1722292121527,12.6,184.97,184.95,13.5164]
[1722292123025,12.6,184.97,184.94,5.4071]
[1722292125558,12.6,184.97,184.92,25.1897]
[1722292125849,12.6,184.95,184.93,5.4072]
[1722292126435,20.0,185.01,184.92,19.7823]
[1722292126436,12.6,184.94,184.92,6.2631]
[1722292127738,12.6,184.94,184.92,5.4076]
[1722292128149,12.6,184.93,184.89,18.9299]
[1722292128454,12.6,184.94,184.91,5.4079]
[1722292128645,12.6,184.93,184.92,1.08143254]
[1722292128950,12.6,184.93,184.89,13.5214]
[1722292129153,14.7567,185.0,184.86,35.1895]
[1722292129154,12.6,184.9,184.87,5.4091]
[1722292129448,12.6,184.88,184.86,22.5895]
[1722292129630,12.6,184.87,184.86,22.5895]
[1722292130653,12.6,184.88,184.86,22.5895]
[1722292132450,12.6,184.89,184.86,22.5895]
[1722292133857,12.6,184.87,184.86,6.2279]
[1722292134062,12.6,184.87,184.82,22.6901317]
[1722292134752,12.6,184.87,184.83,5.4103]
[1722292137853,12.6,184.88,184.83,5.4103]
[1722292138359,12.6,184.87,184.83,5.4103]
[1722292138547,12.6,184.86,184.82,28.1007317]
[1722292138737,12.6,184.86,184.82,12.1838317]
[1722292139062,12.6,184.86,184.82,6.1741317]
[1722292140761,12.6,184.91,184.84,26.1251]
[1722292140942,12.6,184.91,184.85,13.68178144]
[1722292141139,12.6,184.91,184.86,1.0817814]
[1722292141464,12.6,184.91,184.86,6.4911814]
[1722292142761,20.0,184.9,184.86,6.4911814]
[1722292143163,20.0,184.9,184.87,19.7941]
[1722292143344,20.0,184.93,184.87,37.803]
[1722292143540,25.4074,184.93,184.87,37.803]
[1722292143745,20.0,184.93,184.88,5.4088]
[1722292144560,12.6,184.92,184.87,19.7941]
[1722292144762,20.0,184.91,184.87,6.2714]
[1722292145132,25.408,184.91,184.87,6.2714]
[1722292145352,38.008,184.91,184.87,6.2714]
[1722292145761,18.0083,184.9,184.86,16.4035]
[1722292145959,18.0086,184.89,184.86,16.4035]
[1722292146534,12.6,184.88,184.83,18.9354]
[1722292146743,18.0091,184.88,184.83,13.5252]
[1722292147264,5.4092,184.87,184.83,13.5252]
[1722292148072,18.0092,184.87,184.82,12.3963317]
[1722292148561,18.0095,184.86,184.82,0.7635317]
[1722292149381,5.4099,184.85,184.82,0.7635317]
[1722292149682,20.0,184.84,184.82,0.7635317]
[1722292151858,32.6,184.84,184.82,0.7635317]
[1722292152174,19.0957534,184.83,184.82,0.7635317]
[1722292152376,39.0957534,184.83,184.82,0.7635317]
[1722292153181,38.0103,184.83,184.82,0.7635317]
[1722292153486,25.4103,184.83,184.82,0.7635317]
[1722292153689,1.0854534,184.85,184.82,0.7635317]
[1722292153690,14.7567,184.88,184.82,0.7635317]
[1722292153859,5.4098,184.85,184.82,0.7635317]
[1722292155382,38.0101,184.84,184.82,0.7635317]
[1722292155571,18.0103,184.83,184.82,0.7635317]
[1722292155772,84.0957534,184.83,184.82,0.7635317]
[1722292155981,83.0103,184.83,184.82,0.7635317]
[1722292157761,84.0957534,184.83,184.82,0.7635317]
[1722292159699,83.0103,184.83,184.82,0.7635317]
[1722292162370,83.1803,184.83,184.82,0.7635317]
[1722292163466,5.4119,184.78,184.73,22.4751]
[1722292163688,20.0,184.77,184.73,22.4751]
[1722292165302,25.4122,184.77,184.73,22.4751]
[1722292165491,20.0,184.77,184.73,22.4751]
[1722292166374,25.4121,184.77,184.73,22.4751]
[1722292167197,20.0,184.77,184.73,22.4751]
[1722292167697,12.6,184.76,184.73,22.4751]
[1722292167885,25.4124,184.77,184.73,22.4751]
[1722292168213,5.413,184.74,184.73,22.4751]
[1722292168496,5.4127,184.76,184.73,22.4751]
[1722292168884,25.4121,184.77,184.73,22.4751]
[1722292169089,38.0121,184.77,184.73,22.4751]
[1722292169402,18.0126,184.76,184.73,22.4751]
[1722292169569,38.0121,184.77,184.73,22.4751]
[1722292169774,20.0,184.77,184.74,5.4129]
[1722292170096,20.0,184.77,184.73,22.4751]
[1722292170097,20.0,184.78,184.73,23.55766207]
[1722292171396,20.0,184.78,184.73,28.97086207]
[1722292171574,25.4118,184.78,184.73,23.55766207]
[1722292172307,5.4122,184.77,184.73,23.55766207]
[1722292172484,20.0,184.76,184.73,23.55766207]
[1722292173089,20.0,184.77,184.73,23.55766207]
[1722292173603,25.4121,184.77,184.73,23.55766207]
[1722292173798,38.0121,184.77,184.73,1.08256207]
[1722292174012,5.4124,184.76,184.69,12.6]
[1722292174314,5.4124,184.76,184.7,5.4141]
[1722292174805,5.4124,184.76,184.7,18.0141]
[1722292175194,18.0124,184.76,184.7,5.4141]
[1722292175608,5.4127,184.75,184.7,5.4141]
[1722292176905,12.6,184.76,184.7,5.4141]
[1722292177217,18.013,184.74,184.68,40.6424]
[1722292177792,18.013,184.74,184.69,5.4144]
[1722292179706,12.6,184.77,184.7,13.68270971]
[1722292180016,38.0124,184.76,184.71,5.4136]
[1722292180211,20.0,184.8,184.71,5.4136]
[1722292180416,20.0,184.75,184.71,18.0136]
[1722292180625,32.6,184.75,184.7,13.5348]
[1722292180798,5.413,184.74,184.69,5.4143]
[1722292181210,18.013,184.74,184.69,5.4143]
[1722292181414,18.013,184.74,184.68,5.4147]
[1722292181915,18.013,184.74,184.69,5.4143]
[1722292182420,12.6,184.73,184.69,5.4143]
[1722292182805,32.6,184.75,184.7,5.4141]
[1722292182998,32.6,184.75,184.71,5.4138]
[1722292183321,20.0,184.75,184.71,5.4138]
[1722292183521,20.0,184.75,184.72,5.4135]
[1722292184016,20.0,184.75,184.71,5.4138]
[1722292185804,20.0,184.75,184.71,6.49639595]
[1722292186101,20.0,184.75,184.7,18.0141]
[1722292186713,20.0,184.75,184.7,5.4141]
[1722292187817,20.0,184.75,184.71,5.4138]
[1722292187993,20.0,184.75,184.72,14.61414905]
[1722292188322,5.4118,184.78,184.72,26.1339]
[1722292188622,20.0,184.77,184.72,31.5472]
[1722292189021,20.0,184.77,184.73,5.4131]
[1722292189801,20.0,184.77,184.74,1.0824198]
[1722292190109,20.0,184.78,184.73,18.0131]
[1722292190310,20.0,184.78,184.73,5.4131]
[1722292190503,20.0,184.78,184.74,5.4129]
[1722292191625,20.0,184.78,184.73,12.6]
[1722292191626,20.0,184.78,184.73,5.4132]
[1722292191804,20.0,184.78,184.74,1.08238013]